[Event "EYTCC Open U18 2022"]
[Site "Thessaloniki"]
[Date "2022.07.13"]
[Round "2.3"]
[White "Ben Ari, Yannay"]
[Black "Antonica, Dragos-Andrei"]
[Result "1/2-1/2"]
[ECO "E65"]
[WhiteElo "2411"]
[BlackElo "2355"]
[Annotator "ChessBase"]
[PlyCount "79"]
[EventDate "2022.07.12"]
[EventType "team-tourn"]
[EventCountry "GRE"]
[SourceTitle "playchess.com"]
[Source "ChessBase"]
[SourceQuality "1"]
[WhiteTeam "Israel"]
[BlackTeam "Romania"]
[WhiteTeamCountry "ISR"]
[BlackTeamCountry "ROU"]
[TimeControl "40/5400+30:1800+30"]

1. d4 {[%emt 0:00:02]} Nf6 {[%emt 0:00:08]} 2. c4 {[%emt 0:00:07]} g6 {[%emt 0:00:43]} 3. Nf3 {[%emt 0:02:03]} Bg7 {[%emt 0:00:40]} 4. g3 {[%emt 0:00:13]} d6 {[%emt 0:00:38]} 5. Bg2 {[%emt 0:00:07]} O-O {[%emt 0:00:26]} 6. Nc3 {[%emt 0:00:35]} c5 {[%emt 0:01:51]} 7. O-O {[%emt 0:00:30]} Nc6 {[%emt 0:00:18]} 8. dxc5 {[%emt 0:00:15]} dxc5 {[%emt 0:00:20]} 9. Bf4 {[%emt 0:00:12]} Nh5 {[%emt 0:10:50]} 10. Be3 {[%emt 0:00:27]} b6 {[%emt 0:06:14]} 11. Qc1 {[%emt 0:05:38]} Bb7 12. Rd1 {[%emt 0:13:32]} Qc8 {[%emt 0:24:53]} 13. Bh6 Qg4 {[%emt 0:15:19]} 14. Nd5 {[%emt 0:24:28]} Rad8 {[%emt 0:10:45]} 15. h3 Qe6 16. Bxg7 {[%emt 0:25:45]} Nxg7 {[%emt 0:09:50]} 17. Qc3 {[%emt 0:03:03]} Nf5 {[%emt 0:02:52]} 18. e3 {[%emt 0:00:03]} Nd6 {[%emt 0:02:16]} 19. Ng5 {[%emt 0:05:35]} Qf5 {[%emt 0:04:07]} 20. h4 {[%emt 0:01:51]} h6 {[%emt 0:02:01]} 21. Nh3 {[%emt 0:11:28]} Rfe8 {[%emt 0:01:35]} 22. Re1 {[%emt 0:01:43]} Qe5 {[%emt 0:01:53]} 23. b3 {[%emt 0:01:27]} Qxc3 {[%emt 0:01:08]} 24. Nxc3 {[%emt 0:00:02]} Ne5 {[%emt 0:01:05]} 25. Red1 {[%emt 0:00:01]} Bxg2 {[%emt 0:01:31]} 26. Kxg2 {[%emt 0:00:02]} Nf5 {[%emt 0:00:42]} 27. Nd5 {[%emt 0:01:50]} Nc6 {[%emt 0:00:39]} 28. Nhf4 {[%emt 0:00:57]} h5 {[%emt 0:00:56]} 29. Rd3 {[%emt 0:02:29]} Kf8 {[%emt 0:00:44]} 30. Rad1 {[%emt 0:00:01]} e6 {[%emt 0:00:32]} 31. Nf6 {[%emt 0:00:58]} Rxd3 {[%emt 0:00:18]} 32. Rxd3 {[%emt 0:00:01]} Rd8 {[%emt 0:00:39]} 33. Rxd8+ {[%emt 0:00:30]} Nxd8 {[%emt 0:00:01]} 34. Nd7+ {[%emt 0:01:02]} Ke7 {[%emt 0:00:06]} 35. Ne5 {[%emt 0:00:12]} Kd6 {[%emt 0:00:58]} 36. Nfd3 {[%emt 0:00:30]} Ne7 {[%emt 0:00:21]} 37. Nf3 {[%emt 0:00:39]} Nec6 {[%emt 0:00:59]} 38. Ng5 {[%emt 0:00:33]} Ke7 {[%emt 0:00:24]} 39. Kf3 {[%emt 0:00:34]} Nb7 {[%emt 0:00:40]} 40. Ke2 {[%emt 0:00:00]} 1/2-1/2

[Event "EYTCC Open U18 2022"]
[Site "Thessaloniki"]
[Date "2022.07.13"]
[Round "2.3"]
[White "Morgunov, Marc"]
[Black "Budisavljevic, Luka"]
[Result "*"]
[ECO "A50"]
[WhiteElo "2376"]
[BlackElo "2511"]
[Annotator "ChessBase"]
[PlyCount "21"]
[EventDate "2022.07.12"]
[EventType "team-tourn"]
[EventCountry "GRE"]
[SourceTitle "playchess.com"]
[Source "ChessBase"]
[SourceQuality "1"]
[WhiteTeam "Austria"]
[BlackTeam "Serbia"]
[WhiteTeamCountry "AUT"]
[BlackTeamCountry "SRB"]
[TimeControl "40/5400+30:1800+30"]

1. d4 {[%emt 0:00:02]} Nf6 {[%emt 0:00:08]} 2. c4 {[%emt 0:00:07]} g6 {[%emt 0:00:43]} 3. Nf3 {[%emt 0:02:03]} Bg7 {[%emt 0:00:40]} 4. g3 {[%emt 0:00:13]} d6 {[%emt 0:00:38]} 5. Bg2 {[%emt 0:00:07]} O-O {[%emt 0:00:26]} 6. Nc3 {[%emt 0:00:35]} c5 {[%emt 0:01:51]} 7. O-O {[%emt 0:00:30]} Nc6 {[%emt 0:00:18]} 8. dxc5 {[%emt 0:00:15]} dxc5 {[%emt 0:00:20]} 9. Bf4 {[%emt 0:00:12]} Nh5 {[%emt 0:10:50]} 10. Be3 {[%emt 0:00:27]} b6 {[%emt 0:06:14]} 11. Qc1 {[%emt 0:05:38]} *

[Event "EYTCC Open U18 2022"]
[Site "Thessaloniki"]
[Date "2022.07.13"]
[Round "2.4"]
[White "Antal, Hunor-Zoltan"]
[Black "Milikow, Elie"]
[Result "0-1"]
[ECO "A06"]
[WhiteElo "2263"]
[BlackElo "2433"]
[Annotator "ChessBase"]
[PlyCount "96"]
[EventDate "2022.07.12"]
[EventType "team-tourn"]
[EventCountry "GRE"]
[SourceTitle "playchess.com"]
[Source "ChessBase"]
[SourceQuality "1"]
[WhiteTeam "Romania"]
[BlackTeam "Israel"]
[WhiteTeamCountry "ROU"]
[BlackTeamCountry "ISR"]
[TimeControl "40/5400+30:1800+30"]

1. Nf3 {[%emt 0:00:15]} d5 {[%emt 0:01:44]} 2. e3 {[%emt 0:00:30]} Nf6 {[%emt 0:00:50]} 3. b3 {[%emt 0:01:04]} g6 {[%emt 0:03:07]} 4. Bb2 {[%emt 0:01:48]} Bg7 {[%emt 0:00:26]} 5. c4 {[%emt 0:01:35]} c6 {[%emt 0:01:09]} 6. Nc3 {[%emt 0:03:44]} O-O {[%emt 0:01:25]} 7. d4 {[%emt 0:01:25]} Re8 {[%emt 0:05:44]} 8. Bd3 {[%emt 0:02:56]} Bg4 {[%emt 0:06:15]} 9. O-O {[%emt 0:24:11]} Nbd7 {[%emt 0:02:50]} 10. cxd5 {[%emt 0:11:53]} cxd5 {[%emt 0:01:46]} 11. h3 {[%emt 0:01:18]} Bxf3 {[%emt 0:01:59]} 12. Qxf3 {[%emt 0:00:03]} e5 {[%emt 0:02:06]} 13. dxe5 {[%emt 0:08:05]} Nxe5 {[%emt 0:00:17]} 14. Qd1 {[%emt 0:02:02]} Rc8 {[%emt 0:03:00]} 15. Ne2 {[%emt 0:17:10]} Ne4 {[%emt 0:06:48]} 16. Nd4 {[%emt 0:01:45]} Qa5 {[%emt 0:03:33]} 17. Qe2 {[%emt 0:07:32]} Nc3 {[%emt 0:09:02]} 18. Qd2 {[%emt 0:01:33]} Nxd3 {[%emt 0:02:42]} 19. Qxd3 {[%emt 0:00:02]} Bxd4 {[%emt 0:02:24]} 20. exd4 {[%emt 0:00:01]} Ne2+ {[%emt 0:02:14]} 21. Kh2 {[%emt 0:00:46]} Qc7+ {[%emt 0:00:52]} 22. g3 {[%emt 0:00:55]} Qc2 {[%emt 0:00:46]} 23. Qxc2 {[%emt 0:00:31]} Rxc2 {[%emt 0:00:03]} 24. Rab1 {[%emt 0:00:42]} f5 {[%emt 0:07:38]} 25. Kg2 {[%emt 0:07:01]} f4 {[%emt 0:05:22]} 26. g4 {[%emt 0:00:27]} Ng3 {[%emt 0:04:51]} 27. Rfc1 {[%emt 0:00:47]} Ree2 {[%emt 0:01:06]} 28. Rxc2 {[%emt 0:01:15]} Rxc2 {[%emt 0:00:06]} 29. Ba3 {[%emt 0:02:05]} Rxa2 {[%emt 0:01:48]} 30. Rb2 {[%emt 0:00:17]} Rxb2 {[%emt 0:00:12]} 31. Bxb2 {[%emt 0:00:01]} Ne4 {[%emt 0:00:13]} 32. h4 {[%emt 0:01:34]} h6 {[%emt 0:02:03]} 33. Bc1 {[%emt 0:01:10]} g5 {[%emt 0:00:26]} 34. h5 {[%emt 0:00:17]} Kf7 {[%emt 0:10:10]} 35. f3 {[%emt 0:00:28]} Nd6 {[%emt 0:00:21]} 36. Kf2 {[%emt 0:00:28]} a5 {[%emt 0:00:19]} 37. Ba3 {[%emt 0:00:21]} Ke6 {[%emt 0:03:44]} 38. Ke2 {[%emt 0:00:34]} b5 {[%emt 0:06:56]} 39. Kd3 {[%emt 0:00:55]} b4 {[%emt 0:00:21]} 40. Bb2 {[%emt 0:00:00]} Kd7 {[%emt 0:00:00]} 41. Kc2 {[%emt 0:06:39]} Kc6 {[%emt 0:02:10]} 42. Bc1 {[%emt 0:05:23]} Nb5 {[%emt 0:00:36]} 43. Kd3 {[%emt 0:00:54]} Nc7 {[%emt 0:00:09]} 44. Bd2 {[%emt 0:00:50]} Ne6 {[%emt 0:00:07]} 45. Be1 {[%emt 0:00:32]} Kb5 {[%emt 0:00:06]} 46. Bf2 {[%emt 0:00:10]} a4 {[%emt 0:00:51]} 47. Kc2 {[%emt 0:00:02]} axb3+ {[%emt 0:00:30]} 48. Kxb3 {[%emt 0:00:02]} Nd8 {[%emt 0:00:10]} 0-1

[Event "EYTCC Open U18 2022"]
[Site "Thessaloniki"]
[Date "2022.07.13"]
[Round "2.5"]
[White "Subelj, Jan"]
[Black "Baum, Jonasz"]
[Result "*"]
[ECO "A15"]
[WhiteElo "2498"]
[BlackElo "2410"]
[Annotator "ChessBase"]
[PlyCount "23"]
[EventDate "2022.07.12"]
[EventType "team-tourn"]
[EventCountry "GRE"]
[SourceTitle "playchess.com"]
[Source "ChessBase"]
[SourceQuality "1"]
[WhiteTeam "Slovenia"]
[BlackTeam "Poland"]
[WhiteTeamCountry "SLO"]
[BlackTeamCountry "POL"]
[TimeControl "40/5400+30:1800+30"]

1. c4 {[%emt 0:00:08]} Nf6 {[%emt 0:00:32]} 2. g3 {[%emt 0:00:14]} g6 {[%emt 0:00:16]} 3. Bg2 {[%emt 0:00:06]} Bg7 {[%emt 0:00:03]} 4. Nc3 {[%emt 0:00:38]} O-O {[%emt 0:00:48]} 5. Nf3 {[%emt 0:00:19]} d6 {[%emt 0:00:48]} 6. O-O {[%emt 0:00:09]} Nc6 {[%emt 0:00:32]} 7. d4 {[%emt 0:00:13]} Bd7 {[%emt 0:01:17]} 8. d5 {[%emt 0:07:58]} Na5 {[%emt 0:00:22]} 9. Qd3 {[%emt 0:01:30]} c5 {[%emt 0:02:37]} 10. e4 {[%emt 0:00:46]} a6 {[%emt 0:04:04]} 11. Bg5 {[%emt 0:08:17]} Ng4 {[%emt 0:04:57]} 12. Rae1 {[%emt 0:03:51]} *

[Event "EYTCC Open U18 2022"]
[Site "Thessaloniki"]
[Date "2022.07.13"]
[Round "2.5"]
[White "Borhy, Marcell"]
[Black "Trost, Edvin"]
[Result "0-1"]
[ECO "A15"]
[WhiteElo "2411"]
[BlackElo "2345"]
[Annotator "ChessBase"]
[PlyCount "48"]
[EventDate "2022.07.12"]
[EventType "team-tourn"]
[EventCountry "GRE"]
[SourceTitle "playchess.com"]
[Source "ChessBase"]
[SourceQuality "1"]
[WhiteTeam "Hungary"]
[BlackTeam "Sweden"]
[WhiteTeamCountry "HUN"]
[BlackTeamCountry "SWE"]
[TimeControl "40/5400+30:1800+30"]

1. c4 {[%emt 0:00:08]} Nf6 {[%emt 0:00:32]} 2. g3 {[%emt 0:00:14]} g6 {[%emt 0:00:16]} 3. Bg2 {[%emt 0:00:06]} Bg7 {[%emt 0:00:03]} 4. Nc3 {[%emt 0:00:38]} O-O {[%emt 0:00:48]} 5. Nf3 {[%emt 0:00:19]} d6 {[%emt 0:00:48]} 6. O-O {[%emt 0:00:09]} Nc6 {[%emt 0:00:32]} 7. d4 {[%emt 0:00:13]} Bd7 {[%emt 0:01:17]} 8. d5 {[%emt 0:07:58]} Na5 {[%emt 0:00:22]} 9. Qd3 {[%emt 0:01:30]} c5 {[%emt 0:02:37]} 10. e4 {[%emt 0:00:46]} a6 {[%emt 0:04:04]} 11. Bg5 {[%emt 0:08:17]} Ng4 {[%emt 0:04:57]} 12. Rae1 {[%emt 0:03:51]} b5 {[%emt 0:01:51]} 13. b3 {[%emt 0:00:37]} Rb8 {[%emt 0:03:29]} 14. h3 {[%emt 0:10:21]} Ne5 {[%emt 0:01:40]} 15. Nxe5 {[%emt 0:00:31]} Bxe5 {[%emt 0:00:05]} 16. cxb5 {[%emt 0:03:35]} axb5 {[%emt 0:00:48]} 17. f4 {[%emt 0:02:25]} Bf6 {[%emt 0:11:57]} 18. Bh6 {[%emt 0:07:22]} Bd4+ {[%emt 0:00:22]} 19. Kh2 {[%emt 0:00:05]} Re8 {[%emt 0:00:06]} 20. b4 {[%emt 0:04:08]} Nc4 {[%emt 0:02:34]} 21. e5 {[%emt 0:24:11]} dxe5 {[%emt 0:09:31]} 22. bxc5 {[%emt 0:01:19]} Bf5 {[%emt 0:01:09]} 23. Ne4 {[%emt 0:00:15]} Qxd5 {[%emt 0:01:18]} 24. fxe5 {[%emt 0:00:40]} Bg1+ {[%emt 0:01:35]} 0-1

[Event "EYTCC Open U18 2022"]
[Site "Thessaloniki"]
[Date "2022.07.13"]
[Round "2.6"]
[White "Olsson, William"]
[Black "Juhasz, Agoston"]
[Result "0-1"]
[ECO "A20"]
[WhiteElo "2284"]
[BlackElo "2344"]
[Annotator "ChessBase"]
[PlyCount "180"]
[EventDate "2022.07.12"]
[EventType "team-tourn"]
[EventCountry "GRE"]
[SourceTitle "playchess.com"]
[Source "ChessBase"]
[SourceQuality "1"]
[WhiteTeam "Sweden"]
[BlackTeam "Hungary"]
[WhiteTeamCountry "SWE"]
[BlackTeamCountry "HUN"]
[TimeControl "40/5400+30:1800+30"]

1. c4 {[%emt 0:00:05]} e5 {[%emt 0:00:20]} 2. g3 {[%emt 0:00:04]} Nf6 {[%emt 0:00:25]} 3. Bg2 {[%emt 0:00:05]} c6 {[%emt 0:00:23]} 4. Nf3 {[%emt 0:00:17]} e4 {[%emt 0:00:57]} 5. Nd4 {[%emt 0:00:04]} Qb6 {[%emt 0:00:56]} 6. e3 {[%emt 0:01:37]} d5 {[%emt 0:02:00]} 7. cxd5 {[%emt 0:00:27]} cxd5 {[%emt 0:00:25]} 8. d3 {[%emt 0:05:11]} Nc6 {[%emt 0:06:03]} 9. dxe4 {[%emt 0:10:45]} Bb4+ {[%emt 0:05:46]} 10. Nc3 {[%emt 0:11:50]} Nxe4 {[%emt 0:04:18]} 11. Bd2 {[%emt 0:03:52]} Nxd4 {[%emt 0:20:31]} 12. exd4 {[%emt 0:05:54]} O-O {[%emt 0:07:53]} 13. Nxe4 {[%emt 0:01:58]} dxe4 {[%emt 0:01:16]} 14. Bc3 {[%emt 0:00:18]} Be6 {[%emt 0:06:59]} 15. O-O {[%emt 0:07:59]} Bd5 {[%emt 0:01:18]} 16. Qh5 {[%emt 0:03:44]} f5 {[%emt 0:05:41]} 17. g4 {[%emt 0:03:36]} g6 {[%emt 0:04:19]} 18. Qg5 {[%emt 0:00:41]} Rae8 {[%emt 0:02:06]} 19. Rfe1 {[%emt 0:04:37]} Be7 {[%emt 0:04:20]} 20. Qd2 {[%emt 0:03:52]} Bd6 {[%emt 0:03:17]} 21. Ba5 {[%emt 0:03:59]} Qb5 {[%emt 0:00:48]} 22. a4 {[%emt 0:02:22]} Qd7 {[%emt 0:01:31]} 23. Bb4 {[%emt 0:00:44]} Bxb4 {[%emt 0:03:30]} 24. Qxb4 {[%emt 0:00:07]} f4 {[%emt 0:01:14]} 25. Qb5 {[%emt 0:03:31]} Bc6 {[%emt 0:01:32]} 26. Qc4+ {[%emt 0:00:45]} Bd5 {[%emt 0:00:47]} 27. Qb5 {[%emt 0:00:09]} Bc6 {[%emt 0:01:06]} 28. Qc4+ {[%emt 0:00:20]} Kh8 {[%emt 0:00:59]} 29. h3 {[%emt 0:02:23]} h5 {[%emt 0:00:36]} 30. Rad1 {[%emt 0:06:10]} Bd5 {[%emt 0:00:55]} 31. Qb5 {[%emt 0:00:10]} Qxb5 {[%emt 0:09:44]} 32. axb5 {[%emt 0:00:07]} f3 {[%emt 0:00:16]} 33. Bf1 {[%emt 0:00:40]} Kg7 {[%emt 0:00:30]} 34. gxh5 {[%emt 0:02:28]} gxh5 {[%emt 0:00:36]} 35. Rc1 {[%emt 0:00:05]} Kf6 {[%emt 0:01:59]} 36. Rc5 {[%emt 0:00:51]} Rg8+ {[%emt 0:00:51]} 37. Kh2 {[%emt 0:01:06]} Ke6 {[%emt 0:00:27]} 38. Bc4 {[%emt 0:01:51]} Bxc4 {[%emt 0:01:46]} 39. Rxe4+ {[%emt 0:00:16]} Kd7 {[%emt 0:01:03]} 40. Rxe8 {[%emt 0:00:00]} Kxe8 {[%emt 0:00:00]} 41. Rxc4 {[%emt 0:00:24]} Rg2+ {[%emt 0:01:35]} 42. Kh1 {[%emt 0:00:11]} Rxf2 {[%emt 0:05:27]} 43. Kg1 {[%emt 0:04:54]} Rxb2 {[%emt 0:09:32]} 44. Ra4 {[%emt 0:01:03]} Rxb5 {[%emt 0:02:46]} 45. Rxa7 {[%emt 0:00:08]} Rb2 {[%emt 0:00:28]} 46. Ra8+ {[%emt 0:14:01]} Ke7 {[%emt 0:00:23]} 47. Rh8 {[%emt 0:00:42]} b5 {[%emt 0:01:03]} 48. Rxh5 {[%emt 0:00:29]} b4 {[%emt 0:01:27]} 49. Rf5 {[%emt 0:00:09]} Rg2+ {[%emt 0:06:26]} 50. Kh1 {[%emt 0:01:27]} b3 {[%emt 0:00:48]} 51. Rxf3 {[%emt 0:03:05]} b2 {[%emt 0:00:07]} 52. Kxg2 {[%emt 0:00:18]} b1=Q {[%emt 0:00:06]} 53. Rf4 {[%emt 0:05:32]} Ke6 {[%emt 0:00:45]} 54. d5+ {[%emt 0:03:08]} Ke5 {[%emt 0:00:28]} 55. Rg4 {[%emt 0:00:21]} Kf5 {[%emt 0:00:36]} 56. d6 {[%emt 0:00:52]} Qc2+ {[%emt 0:00:11]} 57. Kg1 {[%emt 0:00:11]} Qd3 {[%emt 0:00:45]} 58. Kg2 {[%emt 0:00:07]} Qe2+ {[%emt 0:00:21]} 59. Kg1 {[%emt 0:00:26]} Qf3 {[%emt 0:00:29]} 60. Kh2 {[%emt 0:00:50]} Qf2+ {[%emt 0:00:16]} 61. Kh1 {[%emt 0:00:09]} Qd2 {[%emt 0:00:54]} 62. Kg1 {[%emt 0:00:13]} Qxd6 {[%emt 0:00:55]} 63. Kg2 {[%emt 0:00:04]} Qd1 64. Kh2 {[%emt 0:00:13]} Qf1 {[%emt 0:01:27]} 65. Kg3 {[%emt 0:01:33]} Qg1+ {[%emt 0:01:06]} 66. Kf3 {[%emt 0:00:32]} Qh2 {[%emt 0:00:25]} 67. Rg3 {[%emt 0:00:48]} Ke5 {[%emt 0:00:39]} 68. h4 {[%emt 0:00:22]} Qxh4 {[%emt 0:00:20]} 69. Kg2 {[%emt 0:00:05]} Kf4 {[%emt 0:00:46]} 70. Rf3+ {[%emt 0:00:48]} Kg4 {[%emt 0:00:48]} 71. Re3 {[%emt 0:00:13]} Qh5 {[%emt 0:01:24]} 72. Kf2 {[%emt 0:01:43]} Qc5 {[%emt 0:01:15]} 73. Ke2 {[%emt 0:00:07]} Qc2+ {[%emt 0:00:14]} 74. Ke1 {[%emt 0:00:51]} Kf4 {[%emt 0:00:15]} 75. Rh3 {[%emt 0:00:26]} Qg2 {[%emt 0:02:51]} 76. Rc3 {[%emt 0:00:32]} Ke4 {[%emt 0:00:18]} 77. Kd1 {[%emt 0:00:22]} Kd4 {[%emt 0:00:17]} 78. Rb3 {[%emt 0:00:43]} Qf2 {[%emt 0:00:39]} 79. Ra3 {[%emt 0:00:36]} Kc4 {[%emt 0:00:31]} 80. Kc1 {[%emt 0:00:22]} Qe2 {[%emt 0:00:27]} 81. Kb1 {[%emt 0:01:01]} Qd2 {[%emt 0:00:18]} 82. Ra6 {[%emt 0:00:27]} Qe1+ {[%emt 0:00:58]} 83. Kb2 {[%emt 0:00:12]} Qf2+ {[%emt 0:00:08]} 84. Ka3 {[%emt 0:00:29]} Qe3+ {[%emt 0:00:22]} 85. Ka2 {[%emt 0:00:19]} Kb4 {[%emt 0:00:34]} 86. Rd6 {[%emt 0:00:50]} Qe2+ {[%emt 0:01:15]} 87. Kb1 {[%emt 0:00:13]} Qe4+ {[%emt 0:00:25]} 88. Ka2 {[%emt 0:01:42]} Qg2+ {[%emt 0:00:17]} 89. Kb1 {[%emt 0:00:19]} Qg1+ {[%emt 0:00:16]} 90. Kc2 {[%emt 0:00:45]} Qc5+ {[%emt 0:00:06]} 0-1

[Event "EYTCC Open U18 2022"]
[Site "Thessaloniki"]
[Date "2022.07.13"]
[Round "2.7"]
[White "Palczert, Matyas"]
[Black "Falkevall, Axel"]
[Result "1-0"]
[ECO "B90"]
[WhiteElo "2321"]
[BlackElo "2275"]
[Annotator "ChessBase"]
[PlyCount "93"]
[EventDate "2022.07.12"]
[EventType "team-tourn"]
[EventCountry "GRE"]
[SourceTitle "playchess.com"]
[Source "ChessBase"]
[SourceQuality "1"]
[WhiteTeam "Hungary"]
[BlackTeam "Sweden"]
[WhiteTeamCountry "HUN"]
[BlackTeamCountry "SWE"]
[TimeControl "40/5400+30:1800+30"]

1. e4 {[%emt 0:00:04]} c5 {[%emt 0:00:12]} 2. Nf3 {[%emt 0:00:16]} d6 {[%emt 0:00:20]} 3. d4 {[%emt 0:00:13]} cxd4 {[%emt 0:00:09]} 4. Nxd4 {[%emt 0:00:10]} Nf6 {[%emt 0:00:15]} 5. Nc3 {[%emt 0:00:11]} a6 {[%emt 0:00:33]} 6. Qf3 {[%emt 0:00:36]} g6 {[%emt 0:01:31]} 7. h3 {[%emt 0:00:57]} Bg7 {[%emt 0:00:21]} 8. Be3 {[%emt 0:00:29]} O-O {[%emt 0:02:22]} 9. O-O-O {[%emt 0:03:58]} Nc6 {[%emt 0:03:16]} 10. g4 {[%emt 0:02:37]} Bd7 {[%emt 0:01:35]} 11. Qg2 {[%emt 0:01:57]} b5 {[%emt 0:01:57]} 12. f4 {[%emt 0:05:24]} b4 {[%emt 0:01:43]} 13. Nd5 {[%emt 0:20:44]} a5 {[%emt 0:05:49]} 14. Nxf6+ {[%emt 0:05:08]} Bxf6 {[%emt 0:10:58]} 15. e5 {[%emt 0:01:03]} Nxd4 {[%emt 0:02:56]} 16. Bxd4 {[%emt 0:13:09]} dxe5 {[%emt 0:02:29]} 17. fxe5 {[%emt 0:03:10]} Bg5+ {[%emt 0:03:46]} 18. Kb1 {[%emt 0:00:29]} Be6 {[%emt 0:08:32]} 19. Be2 {[%emt 0:06:04]} Qc7 {[%emt 0:03:36]} 20. h4 {[%emt 0:02:40]} Bh6 {[%emt 0:17:46]} 21. Qf2 {[%emt 0:11:12]} a4 {[%emt 0:11:36]} 22. Bd3 {[%emt 0:02:58]} Rfc8 {[%emt 0:04:06]} 23. h5 {[%emt 0:08:17]} Bg7 {[%emt 0:03:26]} 24. hxg6 {[%emt 0:00:37]} hxg6 {[%emt 0:00:32]} 25. Qh2 {[%emt 0:03:29]} b3 {[%emt 0:05:03]} 26. cxb3 {[%emt 0:01:13]} axb3 {[%emt 0:00:38]} 27. a3 {[%emt 0:00:40]} Ra4 {[%emt 0:04:34]} 28. Rc1 {[%emt 0:04:56]} Qb7 {[%emt 0:01:22]} 29. Rxc8+ {[%emt 0:00:24]} Qxc8 {[%emt 0:00:33]} 30. Be3 {[%emt 0:01:46]} Qd7 {[%emt 0:01:59]} 31. Bxg6 {[%emt 0:00:36]} fxg6 {[%emt 0:01:06]} 32. Qh7+ {[%emt 0:00:07]} Kf7 {[%emt 0:00:31]} 33. Rf1+ {[%emt 0:00:51]} Bf5+ {[%emt 0:00:23]} 34. Ka1 {[%emt 0:00:13]} Rxg4 {[%emt 0:00:09]} 35. Bh6 {[%emt 0:00:37]} Qd3 {[%emt 0:01:02]} 36. Qxg7+ {[%emt 0:00:11]} Ke8 {[%emt 0:00:32]} 37. Qg8+ {[%emt 0:00:34]} Kd7 {[%emt 0:00:06]} 38. Rc1 {[%emt 0:00:25]} Qa6 {[%emt 0:01:10]} 39. Qd5+ {[%emt 0:00:25]} Ke8 {[%emt 0:00:09]} 40. Qg8+ {[%emt 0:00:00]} Kd7 {[%emt 0:00:00]} 41. Rd1+ {[%emt 0:03:06]} Kc7 {[%emt 0:02:26]} 42. Qd8+ {[%emt 0:00:38]} Kc6 {[%emt 0:00:37]} 43. Qe8+ {[%emt 0:00:25]} Kb7 {[%emt 0:00:27]} 44. Qxe7+ {[%emt 0:00:27]} Ka8 {[%emt 0:00:10]} 45. Be3 {[%emt 0:03:55]} Ra4 {[%emt 0:01:10]} 46. Qc5 {[%emt 0:02:38]} Qc4 {[%emt 0:03:08]} 47. Rd8+ {[%emt 0:00:56]} 1-0

[Event "EYTCC Open U18 2022"]
[Site "Thessaloniki"]
[Date "2022.07.13"]
[Round "2.7"]
[White "Atis, Hasan"]
[Black "Veljanoski, Andrej"]
[Result "*"]
[ECO "B54"]
[WhiteElo "1956"]
[BlackElo "2162"]
[Annotator "ChessBase"]
[PlyCount "24"]
[EventDate "2022.07.12"]
[EventType "team-tourn"]
[EventCountry "GRE"]
[SourceTitle "playchess.com"]
[Source "ChessBase"]
[SourceQuality "1"]
[WhiteTeam "Turkey"]
[BlackTeam "Macedonia"]
[WhiteTeamCountry "TUR"]
[BlackTeamCountry "MKD"]
[TimeControl "40/5400+30:1800+30"]

1. e4 {[%emt 0:00:04]} c5 {[%emt 0:00:12]} 2. Nf3 {[%emt 0:00:16]} d6 {[%emt 0:00:20]} 3. d4 {[%emt 0:00:13]} cxd4 {[%emt 0:00:09]} 4. Nxd4 {[%emt 0:00:10]} Nf6 {[%emt 0:00:15]} 5. Nc3 {[%emt 0:00:11]} a6 {[%emt 0:00:33]} 6. Qf3 {[%emt 0:00:36]} g6 {[%emt 0:01:31]} 7. h3 {[%emt 0:00:57]} Bg7 {[%emt 0:00:21]} 8. Be3 {[%emt 0:00:29]} O-O {[%emt 0:02:22]} 9. O-O-O {[%emt 0:03:58]} Nc6 {[%emt 0:03:16]} 10. g4 {[%emt 0:02:37]} Bd7 {[%emt 0:01:35]} 11. Qg2 {[%emt 0:01:57]} b5 {[%emt 0:01:57]} 12. f4 {[%emt 0:05:24]} b4 {[%emt 0:01:43]} *